[Event "GrandPrix_29.05"]
[Site "Chess.com"]
[Date "2020.05.29"]
[Round "3"]
[White "SavelievAlexei"]
[Black "LiamVrolijk"]
[Result "0-1"]
[WhiteElo "2271"]
[BlackElo "2339"]
[TimeControl "600+2"]
[EndTime "10:28:12 PDT"]
[Termination "LiamVrolijk won by resignation"]

1. e4 {[%clk 0:10:01.9]} 1... e5 {[%clk 0:09:59.6]} 2. Nf3 {[%clk 0:10:00.2]}
2... Nc6 {[%clk 0:10:00.8]} 3. Be2 {[%clk 0:09:52.1]} 3... g6 {[%clk 0:09:48.6]}
4. c3 {[%clk 0:09:46.1]} 4... Bg7 {[%clk 0:09:44.3]} 5. d4 {[%clk 0:09:46.4]}
5... d6 {[%clk 0:09:40]} 6. Bg5 {[%clk 0:09:39.6]} 6... Nf6 {[%clk 0:09:33.4]}
7. Nbd2 {[%clk 0:08:47.7]} 7... O-O {[%clk 0:09:25.9]} 8. h3 {[%clk 0:08:33]}
8... h6 {[%clk 0:09:03.8]} 9. Be3 {[%clk 0:08:29.7]} 9... Re8 {[%clk 0:07:40.4]}
10. Bd3 {[%clk 0:08:06.6]} 10... Nh5 {[%clk 0:07:02.5]} 11. g4 {[%clk
0:07:16.2]} 11... Nf6 {[%clk 0:06:52.8]} 12. a3 {[%clk 0:06:31.2]} 12... h5
{[%clk 0:05:28.4]} 13. g5 {[%clk 0:06:09.8]} 13... Nh7 {[%clk 0:05:27.2]} 14.
Qc2 {[%clk 0:06:03.8]} 14... exd4 {[%clk 0:05:20.4]} 15. cxd4 {[%clk 0:06:05.7]}
15... d5 {[%clk 0:05:20.3]} 16. O-O-O {[%clk 0:04:06.5]} 16... dxe4 {[%clk
0:04:35.7]} 17. Bxe4 {[%clk 0:03:55.5]} 17... Rxe4 {[%clk 0:04:34.7]} 18. Nxe4
{[%clk 0:03:44.4]} 18... Qd5 {[%clk 0:04:35.4]} 19. Nfd2 {[%clk 0:03:19.5]}
19... Bf5 {[%clk 0:04:18.5]} 20. f3 {[%clk 0:02:48.8]} 20... Nxd4 {[%clk
0:04:16.1]} 21. Bxd4 {[%clk 0:01:47.8]} 21... Qxd4 {[%clk 0:03:51.3]} 22. Nc4
{[%clk 0:01:47.9]} 22... Bxe4 {[%clk 0:03:50.6]} 23. fxe4 {[%clk 0:01:38.4]}
23... Qc5 {[%clk 0:03:49.9]} 24. Rd5 {[%clk 0:01:36.9]} 24... Qc6 {[%clk
0:03:46.7]} 25. Rhd1 {[%clk 0:01:31]} 25... Re8 {[%clk 0:03:44.7]} 26. h4 {[%clk
0:01:19.8]} 26... Nf8 {[%clk 0:03:35.7]} 27. Kb1 {[%clk 0:00:30.2]} 27... Qe6
{[%clk 0:03:11.9]} 28. e5 {[%clk 0:00:14.4]} 28... a6 {[%clk 0:03:11.5]} 29. Rd8
{[%clk 0:00:09.8]} 29... Rxd8 {[%clk 0:02:37.3]} 30. Rxd8 {[%clk 0:00:11.7]}
30... b5 {[%clk 0:02:38.4]} 31. Nd2 {[%clk 0:00:10.2]} 31... Qxe5 {[%clk
0:02:30.7]} 32. Ne4 {[%clk 0:00:11.3]} 32... Kh7 {[%clk 0:02:26.3]} 33. Nf6+
{[%clk 0:00:12]} 33... Bxf6 {[%clk 0:02:14.6]} 34. Rxf8 {[%clk 0:00:13.1]} 34...
Qe7 {[%clk 0:02:04.2]} 35. Rc8 {[%clk 0:00:07.5]} 35... Be5 {[%clk 0:00:50.9]}
36. Qc6 {[%clk 0:00:07.3]} 36... Bg3 {[%clk 0:00:39.3]} 37. Re8 {[%clk
0:00:07.7]} 37... Qd6 {[%clk 0:00:40.5]} 38. Qxd6 {[%clk 0:00:08.2]} 38... cxd6
{[%clk 0:00:38.7]} 39. Ra8 {[%clk 0:00:08.6]} 39... Bxh4 {[%clk 0:00:36.9]} 40.
Rxa6 {[%clk 0:00:10.3]} 40... Bxg5 {[%clk 0:00:37.6]} 41. Rxd6 {[%clk
0:00:11.9]} 41... h4 {[%clk 0:00:36]} 42. Rd5 {[%clk 0:00:08.8]} 42... Be3
{[%clk 0:00:22.6]} 43. Rd3 {[%clk 0:00:05.6]} 43... Bf4 {[%clk 0:00:23]} 44. b3
{[%clk 0:00:05.8]} 44... g5 {[%clk 0:00:24.2]} 45. a4 {[%clk 0:00:06.8]} 45...
bxa4 {[%clk 0:00:26.1]} 46. bxa4 {[%clk 0:00:08.1]} 46... g4 {[%clk 0:00:26.8]}
47. Rd4 {[%clk 0:00:08.4]} 47... h3 {[%clk 0:00:20.5]} 48. Rxf4 {[%clk
0:00:09.4]} 48... h2 {[%clk 0:00:21.5]} 49. Rxf7+ {[%clk 0:00:10.3]} 49... Kg6
{[%clk 0:00:16.1]} 50. Rf1 {[%clk 0:00:09.8]} 50... g3 {[%clk 0:00:17.4]} 51. a5
{[%clk 0:00:08.2]} 51... g2 {[%clk 0:00:18.3]} 52. Rc1 {[%clk 0:00:09.3]} 52...
g1=Q {[%clk 0:00:18.1]} 0-1

[Event "GrandPrix_29.05"]
[Site "Chess.com"]
[Date "2020.05.29"]
[Round "3"]
[White "MiroVlasenko"]
[Black "MirMan90"]
[Result "1-0"]
[WhiteElo "2699"]
[BlackElo "2536"]
[TimeControl "600+2"]
[EndTime "10:28:17 PDT"]
[Termination "MiroVlasenko won by resignation"]

1. d4 {[%clk 0:09:59.1]} 1... Nf6 {[%clk 0:10:00.7]} 2. Bg5 {[%clk 0:09:56.6]}
2... d5 {[%clk 0:10:00.2]} 3. e3 {[%clk 0:09:56.8]} 3... e6 {[%clk 0:09:53.4]}
4. Nd2 {[%clk 0:09:56.1]} 4... Be7 {[%clk 0:09:52.5]} 5. Bd3 {[%clk 0:09:56]}
5... b6 {[%clk 0:09:45.3]} 6. Ngf3 {[%clk 0:09:46.1]} 6... Bb7 {[%clk
0:09:41.3]} 7. O-O {[%clk 0:09:37.6]} 7... Nbd7 {[%clk 0:09:36.5]} 8. Qe2 {[%clk
0:09:15.6]} 8... c5 {[%clk 0:09:21.1]} 9. c3 {[%clk 0:09:09.2]} 9... O-O {[%clk
0:09:02.2]} 10. Ne5 {[%clk 0:09:05.9]} 10... Nxe5 {[%clk 0:08:41.3]} 11. dxe5
{[%clk 0:09:05.2]} 11... Nd7 {[%clk 0:08:42.5]} 12. Bf4 {[%clk 0:08:54]} 12...
f5 {[%clk 0:07:41.1]} 13. exf6 {[%clk 0:08:27]} 13... Nxf6 {[%clk 0:07:40.7]}
14. Rad1 {[%clk 0:08:14]} 14... Bd6 {[%clk 0:07:30.4]} 15. Bxd6 {[%clk
0:08:07.5]} 15... Qxd6 {[%clk 0:07:32.3]} 16. e4 {[%clk 0:08:05.7]} 16... Nd7
{[%clk 0:06:52.4]} 17. Bc2 {[%clk 0:07:09.7]} 17... Rae8 {[%clk 0:06:19.3]} 18.
Rfe1 {[%clk 0:06:46.6]} 18... Qf4 {[%clk 0:06:07.4]} 19. g3 {[%clk 0:06:17.6]}
19... Qh6 {[%clk 0:05:34.5]} 20. e5 {[%clk 0:06:11]} 20... g5 {[%clk 0:05:18.1]}
21. Ba4 {[%clk 0:05:47.1]} 21... Re7 {[%clk 0:04:23.9]} 22. Bxd7 {[%clk
0:05:44.7]} 22... Rxd7 {[%clk 0:04:25.3]} 23. Ne4 {[%clk 0:05:45.6]} 23... Kh8
{[%clk 0:03:36.6]} 24. Nf6 {[%clk 0:05:42.7]} 24... Re7 {[%clk 0:03:25]} 25. Qg4
{[%clk 0:05:30.1]} 25... Qg6 {[%clk 0:03:21.1]} 26. Rd2 {[%clk 0:05:21.6]} 26...
Ba6 {[%clk 0:03:15.1]} 27. Re3 {[%clk 0:04:49]} 27... Qb1+ {[%clk 0:03:15.3]}
28. Rd1 {[%clk 0:04:48.3]} 28... Qxb2 {[%clk 0:03:11.3]} 29. Qxg5 {[%clk
0:04:46.4]} 29... Qxa2 {[%clk 0:02:57]} 30. Rde1 {[%clk 0:04:20.5]} 30... Qc2
{[%clk 0:02:41.6]} 31. Qh6 {[%clk 0:04:03.6]} 31... Rg7 {[%clk 0:02:38.6]} 32.
Qh3 {[%clk 0:03:47.5]} 32... Bc8 {[%clk 0:02:32.9]} 33. g4 {[%clk 0:03:38.9]}
33... a5 {[%clk 0:02:30.1]} 34. R1e2 {[%clk 0:03:23.2]} 34... Qg6 {[%clk
0:02:24.4]} 35. f4 {[%clk 0:03:13.6]} 35... b5 {[%clk 0:02:17.7]} 36. Rg3 {[%clk
0:03:13.6]} 36... b4 {[%clk 0:02:08.2]} 37. cxb4 {[%clk 0:03:09.4]} 37... axb4
{[%clk 0:02:09.5]} 38. Nh5 {[%clk 0:03:03.5]} 38... Ra7 {[%clk 0:01:59.7]} 39.
f5 {[%clk 0:03:03.8]} 39... Qg5 {[%clk 0:01:57.3]} 40. Nf6 {[%clk 0:02:56.2]}
40... c4 {[%clk 0:01:45.1]} 41. Qf1 {[%clk 0:02:52.3]} 41... b3 {[%clk
0:01:43.6]} 42. h4 {[%clk 0:02:53.2]} 42... Qxh4 {[%clk 0:01:30.8]} 43. Rh3
{[%clk 0:02:50.8]} 43... Qg5 {[%clk 0:01:07.1]} 44. Rh5 {[%clk 0:02:48.8]} 44...
Qg7 {[%clk 0:01:01.9]} 45. Reh2 {[%clk 0:02:39.2]} 45... Rxf6 {[%clk 0:00:50]}
46. Rxh7+ {[%clk 0:02:40.1]} 46... Qxh7 {[%clk 0:00:51.1]} 47. Rxh7+ {[%clk
0:02:40.8]} 47... Kxh7 {[%clk 0:00:52.4]} 48. exf6 {[%clk 0:02:38.7]} 48... b2
{[%clk 0:00:47.2]} 49. Kf2 {[%clk 0:02:06]} 49... exf5 {[%clk 0:00:35.7]} 50.
Qh1+ {[%clk 0:01:46]} 50... Kg6 {[%clk 0:00:36.7]} 51. Qh5+ {[%clk 0:01:43.5]}
51... Kxf6 {[%clk 0:00:38.1]} 52. g5+ {[%clk 0:01:44.8]} 52... Ke5 {[%clk
0:00:24.9]} 53. Qe2+ {[%clk 0:01:45.6]} 53... Kf4 {[%clk 0:00:21.2]} 54. Qxb2
{[%clk 0:01:40.4]} 54... Kxg5 {[%clk 0:00:18.7]} 55. Qd2+ {[%clk 0:01:40.1]}
55... Kg6 {[%clk 0:00:18.3]} 56. Qxd5 {[%clk 0:01:39.3]} 56... Ra2+ {[%clk
0:00:14]} 57. Kg3 {[%clk 0:01:39.3]} 57... Ba6 {[%clk 0:00:14.7]} 58. Qd6+
{[%clk 0:01:36.2]} 58... Kf7 {[%clk 0:00:15.4]} 59. Kf4 {[%clk 0:01:34.7]} 59...
Rf2+ {[%clk 0:00:15.6]} 60. Kg5 {[%clk 0:01:32.7]} 60... Rg2+ {[%clk 0:00:13.8]}
61. Kxf5 {[%clk 0:01:29.2]} 61... Bc8+ {[%clk 0:00:15.1]} 62. Kf4 {[%clk
0:01:29.7]} 62... Be6 {[%clk 0:00:12.7]} 63. Qc7+ {[%clk 0:01:26.6]} 63... Kf6
{[%clk 0:00:14]} 64. Qe5+ {[%clk 0:01:26.9]} 64... Kf7 {[%clk 0:00:15.3]} 65.
Qh5+ {[%clk 0:01:27]} 65... Kf6 {[%clk 0:00:14.1]} 66. Qh6+ {[%clk 0:01:21.5]}
66... Kf7 {[%clk 0:00:14.1]} 67. Ke5 {[%clk 0:01:20.2]} 67... Re2+ {[%clk
0:00:12.2]} 68. Kd6 {[%clk 0:01:21.2]} 68... Rd2+ {[%clk 0:00:13.1]} 69. Qxd2
{[%clk 0:01:21.2]} 1-0

[Event "GrandPrix_29.05"]
[Site "Chess.com"]
[Date "2020.05.29"]
[Round "3"]
[White "lelajavakhishvili"]
[Black "BMOchsner"]
[Result "1/2-1/2"]
[WhiteElo "2212"]
[BlackElo "2120"]
[TimeControl "600+2"]
[EndTime "10:28:18 PDT"]
[Termination "Game drawn by repetition"]

1. d4 {[%clk 0:10:01.7]} 1... Nf6 {[%clk 0:09:59.6]} 2. c4 {[%clk 0:10:01.8]}
2... e6 {[%clk 0:09:59.1]} 3. Nf3 {[%clk 0:10:01.7]} 3... d5 {[%clk 0:09:56.2]}
4. g3 {[%clk 0:09:59.6]} 4... Bb4+ {[%clk 0:09:56]} 5. Bd2 {[%clk 0:09:57.7]}
5... Be7 {[%clk 0:09:56.8]} 6. Bg2 {[%clk 0:09:57.5]} 6... O-O {[%clk
0:09:57.7]} 7. Qc2 {[%clk 0:09:58.2]} 7... Nbd7 {[%clk 0:09:47.1]} 8. O-O {[%clk
0:09:54.1]} 8... Ne4 {[%clk 0:09:47.3]} 9. Nc3 {[%clk 0:09:50.4]} 9... Nxd2
{[%clk 0:09:41.1]} 10. Nxd2 {[%clk 0:09:50.8]} 10... c6 {[%clk 0:09:41.3]} 11.
Rfd1 {[%clk 0:09:43.8]} 11... f5 {[%clk 0:09:34.6]} 12. Nf3 {[%clk 0:09:11.3]}
12... Qe8 {[%clk 0:08:38.9]} 13. cxd5 {[%clk 0:08:52.2]} 13... exd5 {[%clk
0:08:23]} 14. e3 {[%clk 0:08:48.8]} 14... Bd6 {[%clk 0:07:57.7]} 15. Rab1 {[%clk
0:08:44.6]} 15... a5 {[%clk 0:07:48]} 16. Ne2 {[%clk 0:08:29.6]} 16... Nf6
{[%clk 0:07:06.7]} 17. Nf4 {[%clk 0:08:28.4]} 17... Ne4 {[%clk 0:06:51.5]} 18.
Nd3 {[%clk 0:08:27.4]} 18... Kh8 {[%clk 0:06:15.5]} 19. Nfe5 {[%clk 0:08:26.9]}
19... Qh5 {[%clk 0:05:39.3]} 20. f3 {[%clk 0:08:24.1]} 20... Nf6 {[%clk
0:05:28.1]} 21. Rbc1 {[%clk 0:07:11.9]} 21... Qe8 {[%clk 0:05:23.4]} 22. Qa4
{[%clk 0:06:55.4]} 22... Qe7 {[%clk 0:05:07.5]} 23. a3 {[%clk 0:06:41.4]} 23...
Be6 {[%clk 0:04:54.3]} 24. Re1 {[%clk 0:05:55.8]} 24... Rfe8 {[%clk 0:04:40]}
25. Nf4 {[%clk 0:05:49.4]} 25... Bf7 {[%clk 0:04:32.2]} 26. Nfd3 {[%clk
0:05:42.7]} 26... Kg8 {[%clk 0:04:24.7]} 27. Qc2 {[%clk 0:05:41.4]} 27... Be6
{[%clk 0:03:30]} 28. Kh1 {[%clk 0:05:28.4]} 28... Bc8 {[%clk 0:03:11.3]} 29. Rg1
{[%clk 0:05:26.1]} 29... Nd7 {[%clk 0:03:03.9]} 30. f4 {[%clk 0:04:41.1]} 30...
Nf6 {[%clk 0:03:03.6]} 31. h3 {[%clk 0:04:36]} 31... Ne4 {[%clk 0:03:01.6]} 32.
Bf3 {[%clk 0:04:29.6]} 32... Rf8 {[%clk 0:02:48]} 33. Qh2 {[%clk 0:04:26.6]}
33... Rf6 {[%clk 0:02:47]} 34. Rc2 {[%clk 0:04:16.7]} 34... Rh6 {[%clk
0:02:31.4]} 35. h4 {[%clk 0:04:08.5]} 35... Nf6 {[%clk 0:02:16.4]} 36. Qe2
{[%clk 0:03:54.8]} 36... Be6 {[%clk 0:02:01.7]} 37. Nf2 {[%clk 0:03:38.1]} 37...
Kh8 {[%clk 0:01:46.4]} 38. Nh3 {[%clk 0:03:35.5]} 38... Ne4 {[%clk 0:01:34.2]}
39. Qe1 {[%clk 0:03:15.8]} 39... Bc7 {[%clk 0:01:18.4]} 40. Rh2 {[%clk
0:03:14.2]} 40... Re8 {[%clk 0:01:07.2]} 41. Ng5 {[%clk 0:03:14.1]} 41... Bg8
{[%clk 0:01:02.6]} 42. g4 {[%clk 0:02:33.2]} 42... Bxe5 {[%clk 0:01:01.2]} 43.
dxe5 {[%clk 0:02:32]} 43... Nxg5 {[%clk 0:00:53.1]} 44. hxg5 {[%clk 0:02:31.2]}
44... Rxh2+ {[%clk 0:00:53.5]} 45. Kxh2 {[%clk 0:02:32.4]} 45... fxg4 {[%clk
0:00:40]} 46. Bxg4 {[%clk 0:02:23]} 46... Qc5 {[%clk 0:00:38.5]} 47. Qc3 {[%clk
0:02:12.6]} 47... Qb5 {[%clk 0:00:26.3]} 48. Kg3 {[%clk 0:02:12.3]} 48... c5
{[%clk 0:00:22.4]} 49. Rh1 {[%clk 0:02:11.2]} 49... Rd8 {[%clk 0:00:13.6]} 50.
Bf5 {[%clk 0:02:04]} 50... d4 {[%clk 0:00:07.1]} 51. Qd2 {[%clk 0:01:52.5]}
51... Qb6 {[%clk 0:00:05.1]} 52. e4 {[%clk 0:01:48.5]} 52... c4 {[%clk
0:00:05.5]} 53. e6 {[%clk 0:01:35]} 53... Qb3+ {[%clk 0:00:05.2]} 54. Kg4 {[%clk
0:01:27.2]} 54... c3 {[%clk 0:00:04.2]} 55. bxc3 {[%clk 0:01:23.3]} 55... Bxe6
{[%clk 0:00:05]} 56. Rxh7+ {[%clk 0:01:18.5]} 56... Kg8 {[%clk 0:00:06.1]} 57.
Qh2 {[%clk 0:00:58.1]} 57... Bxf5+ {[%clk 0:00:07]} 58. exf5 {[%clk 0:00:58.5]}
58... Qd1+ {[%clk 0:00:08.1]} 59. Kg3 {[%clk 0:00:56.2]} 59... Qe1+ {[%clk
0:00:06.2]} 60. Kg4 {[%clk 0:00:56.4]} 60... Qd1+ {[%clk 0:00:06]} 61. Kg3
{[%clk 0:00:53.7]} 61... Qe1+ {[%clk 0:00:06.7]} 62. Kg4 {[%clk 0:00:54]} 62...
Qd1+ {[%clk 0:00:07.5]} 1/2-1/2

[Event "GrandPrix_29.05"]
[Site "Chess.com"]
[Date "2020.05.29"]
[Round "3"]
[White "redblizzard"]
[Black "Gordima"]
[Result "0-1"]
[WhiteElo "1851"]
[BlackElo "2228"]
[TimeControl "600+2"]
[EndTime "10:28:19 PDT"]
[Termination "Gordima won by resignation"]

1. e4 {[%clk 0:10:01.9]} 1... Nf6 {[%clk 0:10:00.3]} 2. e5 {[%clk 0:10:02.7]}
2... Nd5 {[%clk 0:10:01.9]} 3. d4 {[%clk 0:10:04.1]} 3... d6 {[%clk 0:10:03.1]}
4. Nf3 {[%clk 0:10:05.6]} 4... dxe5 {[%clk 0:10:03.1]} 5. Nxe5 {[%clk 0:10:06]}
5... c6 {[%clk 0:10:04.4]} 6. Be2 {[%clk 0:10:06.1]} 6... Bf5 {[%clk 0:10:04.7]}
7. O-O {[%clk 0:10:06.3]} 7... Nd7 {[%clk 0:10:06.1]} 8. Nf3 {[%clk 0:09:21.1]}
8... e6 {[%clk 0:10:05.6]} 9. a3 {[%clk 0:09:14.6]} 9... Bd6 {[%clk 0:10:05]}
10. Re1 {[%clk 0:09:15.7]} 10... O-O {[%clk 0:10:01.9]} 11. c4 {[%clk 0:09:16]}
11... N5f6 {[%clk 0:10:02.9]} 12. Nc3 {[%clk 0:09:12.2]} 12... Re8 {[%clk
0:09:56.2]} 13. h3 {[%clk 0:08:44.1]} 13... e5 {[%clk 0:09:50.2]} 14. d5 {[%clk
0:08:27.5]} 14... Qc7 {[%clk 0:09:32.3]} 15. b4 {[%clk 0:08:09]} 15... Bf8
{[%clk 0:07:42.8]} 16. Nh4 {[%clk 0:08:01]} 16... Bg6 {[%clk 0:07:41.5]} 17.
Nxg6 {[%clk 0:07:54.6]} 17... hxg6 {[%clk 0:07:43.4]} 18. c5 {[%clk 0:07:55.3]}
18... cxd5 {[%clk 0:06:54.2]} 19. Nxd5 {[%clk 0:07:57.2]} 19... Nxd5 {[%clk
0:06:51.8]} 20. Qxd5 {[%clk 0:07:58.5]} 20... Nf6 {[%clk 0:06:51.7]} 21. Qb3
{[%clk 0:07:46.5]} 21... b6 {[%clk 0:06:06.2]} 22. cxb6 {[%clk 0:06:34.4]} 22...
Qxb6 {[%clk 0:06:02.5]} 23. Be3 {[%clk 0:06:32.9]} 23... Qb7 {[%clk 0:06:03.8]}
24. Red1 {[%clk 0:06:04.3]} 24... a5 {[%clk 0:05:26.8]} 25. b5 {[%clk
0:05:55.5]} 25... a4 {[%clk 0:05:27.7]} 26. Qa2 {[%clk 0:05:28.6]} 26... Red8
{[%clk 0:05:20.3]} 27. b6 {[%clk 0:05:07.5]} 27... e4 {[%clk 0:03:46.2]} 28.
Rab1 {[%clk 0:04:46.1]} 28... Nd5 {[%clk 0:03:36.7]} 29. Bd4 {[%clk 0:04:08]}
29... Rac8 {[%clk 0:03:29.7]} 30. Bc4 {[%clk 0:03:39.1]} 30... Nf4 {[%clk
0:03:19.8]} 31. Be5 {[%clk 0:02:54.5]} 31... Nd3 {[%clk 0:02:21.2]} 32. Bxf7+
{[%clk 0:01:58.8]} 32... Qxf7 {[%clk 0:02:11.1]} 33. Qxf7+ {[%clk 0:02:00.7]}
33... Kxf7 {[%clk 0:02:12.5]} 34. b7 {[%clk 0:01:28.1]} 34... Nxe5 {[%clk
0:01:34.9]} 35. bxc8=Q {[%clk 0:01:11.7]} 35... Rxc8 {[%clk 0:01:36.8]} 36. Rd4
{[%clk 0:01:12.1]} 36... Rc4 {[%clk 0:01:30.7]} 37. Rb7+ {[%clk 0:01:01.7]}
37... Kf6 {[%clk 0:00:48.8]} 38. Rb6+ {[%clk 0:00:35.4]} 38... Kf5 {[%clk
0:00:48.3]} 39. Rxc4 {[%clk 0:00:27.4]} 39... Nxc4 {[%clk 0:00:50.2]} 40. Ra6
{[%clk 0:00:29.1]} 40... Nb2 {[%clk 0:00:47.8]} 41. g4+ {[%clk 0:00:30]} 41...
Kg5 {[%clk 0:00:31.8]} 42. Re6 {[%clk 0:00:29.8]} 42... Bxa3 {[%clk 0:00:28.5]}
43. Rxe4 {[%clk 0:00:30.7]} 43... Bd6 {[%clk 0:00:14.2]} 44. Re6 {[%clk
0:00:23.4]} 44... Bf8 {[%clk 0:00:06.2]} 45. Re2 {[%clk 0:00:10.5]} 45... a3
{[%clk 0:00:06.4]} 46. f4+ {[%clk 0:00:11.8]} 46... Kf6 {[%clk 0:00:04.8]} 47.
Re8 {[%clk 0:00:13.1]} 47... Bc5+ {[%clk 0:00:05.2]} 48. Kg2 {[%clk 0:00:13.7]}
48... Na4 {[%clk 0:00:04.8]} 49. Ra8 {[%clk 0:00:13.7]} 49... Nc3 {[%clk
0:00:05.7]} 50. Rxa3 {[%clk 0:00:14.7]} 50... Bxa3 {[%clk 0:00:05.8]} 51. Kg3
{[%clk 0:00:16.1]} 51... Bd6 {[%clk 0:00:06.9]} 52. Kf3 {[%clk 0:00:16.4]} 52...
Nd5 {[%clk 0:00:07.5]} 53. h4 {[%clk 0:00:14.6]} 53... Nxf4 {[%clk 0:00:08.4]}
54. Ke4 {[%clk 0:00:14.9]} 54... Ng2 {[%clk 0:00:09.1]} 55. h5 {[%clk
0:00:12.8]} 55... gxh5 {[%clk 0:00:10.2]} 56. gxh5 {[%clk 0:00:14.7]} 56... Kg5
{[%clk 0:00:11.8]} 57. h6 {[%clk 0:00:15.8]} 57... gxh6 {[%clk 0:00:11.8]} 0-1

[Event "GrandPrix_29.05"]
[Site "Chess.com"]
[Date "2020.05.29"]
[Round "3"]
[White "tsaruk_maks"]
[Black "eristeski7"]
[Result "1-0"]
[WhiteElo "2223"]
[BlackElo "2077"]
[TimeControl "600+2"]
[EndTime "10:28:19 PDT"]
[Termination "tsaruk_maks won by resignation"]

1. e4 {[%clk 0:10:01.9]} 1... c5 {[%clk 0:10:00.2]} 2. Nf3 {[%clk 0:10:02.2]}
2... Nc6 {[%clk 0:10:00.9]} 3. d4 {[%clk 0:10:03]} 3... cxd4 {[%clk 0:10:02.3]}
4. Nxd4 {[%clk 0:10:04.9]} 4... Nf6 {[%clk 0:10:03.9]} 5. Nc3 {[%clk 0:10:06.5]}
5... e5 {[%clk 0:10:05.3]} 6. Ndb5 {[%clk 0:10:08.1]} 6... d6 {[%clk 0:10:06.5]}
7. Bg5 {[%clk 0:10:08.1]} 7... a6 {[%clk 0:10:07]} 8. Na3 {[%clk 0:10:09.7]}
8... b5 {[%clk 0:10:08.1]} 9. Nd5 {[%clk 0:10:11.3]} 9... Be7 {[%clk 0:10:09.2]}
10. Bxf6 {[%clk 0:10:12.9]} 10... Bxf6 {[%clk 0:10:11.1]} 11. c3 {[%clk
0:10:14.4]} 11... Ne7 {[%clk 0:10:11.9]} 12. Nxf6+ {[%clk 0:09:42.8]} 12... gxf6
{[%clk 0:10:13.8]} 13. g3 {[%clk 0:09:44.4]} 13... Bb7 {[%clk 0:10:09]} 14. Bg2
{[%clk 0:09:44.9]} 14... f5 {[%clk 0:10:09.7]} 15. Qe2 {[%clk 0:09:38.5]} 15...
fxe4 {[%clk 0:09:21]} 16. Bxe4 {[%clk 0:09:37.8]} 16... d5 {[%clk 0:09:21.4]}
17. Bg2 {[%clk 0:09:33.1]} 17... Qc7 {[%clk 0:09:13.7]} 18. O-O {[%clk 0:09:10]}
18... O-O {[%clk 0:09:12.3]} 19. f4 {[%clk 0:08:44.3]} 19... b4 {[%clk
0:08:20.7]} 20. cxb4 {[%clk 0:08:13.3]} 20... e4 {[%clk 0:08:14.7]} 21. f5
{[%clk 0:07:54.9]} 21... Qb6+ {[%clk 0:07:43.6]} 22. Kh1 {[%clk 0:07:54.1]}
22... f6 {[%clk 0:07:03.4]} 23. Nc2 {[%clk 0:07:48.3]} 23... Nc6 {[%clk
0:06:53]} 24. a3 {[%clk 0:07:10.5]} 24... Rfe8 {[%clk 0:06:02.8]} 25. Rad1
{[%clk 0:05:18.2]} 25... d4 {[%clk 0:04:01.5]} 26. Qc4+ {[%clk 0:04:57.8]} 26...
Kh8 {[%clk 0:03:57]} 27. Nxd4 {[%clk 0:04:59.2]} 27... Rac8 {[%clk 0:03:21.9]}
28. Nxc6 {[%clk 0:04:19.5]} 28... Qxc6 {[%clk 0:03:11.4]} 29. Qxc6 {[%clk
0:04:19.7]} 29... Bxc6 {[%clk 0:02:45.8]} 30. Rfe1 {[%clk 0:04:17]} 30... Kg7
{[%clk 0:01:42.6]} 31. Rd6 {[%clk 0:03:45.7]} 31... Bb5 {[%clk 0:00:59.4]} 32.
Re6 {[%clk 0:01:56.3]} 32... Rxe6 {[%clk 0:00:53.2]} 33. fxe6 {[%clk 0:01:57.6]}
33... f5 {[%clk 0:00:54.6]} 34. g4 {[%clk 0:01:59.1]} 34... fxg4 {[%clk
0:00:33.4]} 35. Bxe4 {[%clk 0:01:58.7]} 35... h5 {[%clk 0:00:14.5]} 36. Kg2
{[%clk 0:01:57.4]} 36... Kf6 {[%clk 0:00:13.8]} 37. Kg3 {[%clk 0:01:15.6]} 37...
Rc7 {[%clk 0:00:09.4]} 38. Kh4 {[%clk 0:01:11.7]} 38... Kxe6 {[%clk 0:00:08.1]}
39. Bd3+ {[%clk 0:01:12.6]} 39... Kf6 {[%clk 0:00:05.6]} 40. Bxb5 {[%clk
0:01:13.8]} 40... axb5 {[%clk 0:00:07.5]} 41. Kxh5 {[%clk 0:00:34]} 41... Rc2
{[%clk 0:00:08.2]} 42. Rh1 {[%clk 0:00:22.1]} 42... Rxb2 {[%clk 0:00:08.3]} 43.
Kxg4 {[%clk 0:00:22.9]} 43... Rb3 {[%clk 0:00:06.5]} 44. Ra1 {[%clk 0:00:23.8]}
44... Kg6 {[%clk 0:00:06.5]} 45. Ra2 {[%clk 0:00:21.9]} 45... Kh6 {[%clk
0:00:07.6]} 46. Kf5 {[%clk 0:00:21.4]} 46... Rf3+ {[%clk 0:00:07.6]} 47. Ke5
{[%clk 0:00:22.6]} 47... Rh3 {[%clk 0:00:08.6]} 48. Kd5 {[%clk 0:00:23.6]} 48...
Rh5+ {[%clk 0:00:08.9]} 49. Kc6 {[%clk 0:00:25.1]} 49... Rf5 {[%clk 0:00:08.1]}
50. Rc2 {[%clk 0:00:26.4]} 50... Rf3 {[%clk 0:00:08.9]} 51. Kxb5 {[%clk
0:00:27.6]} 51... Rxa3 {[%clk 0:00:09.8]} 52. Kb6 {[%clk 0:00:29.1]} 52... Rf3
{[%clk 0:00:10.7]} 53. b5 {[%clk 0:00:30.4]} 53... Rf5 {[%clk 0:00:11.8]} 54.
Ka6 {[%clk 0:00:31.3]} 54... Rf1 {[%clk 0:00:12.3]} 55. b6 {[%clk 0:00:32.4]}
55... Ra1+ {[%clk 0:00:14.1]} 56. Kb7 {[%clk 0:00:33.8]} 56... Rb1 {[%clk
0:00:16]} 57. Ka7 {[%clk 0:00:34.5]} 57... Kg6 {[%clk 0:00:17.5]} 58. b7 {[%clk
0:00:35.8]} 58... Ra1+ {[%clk 0:00:18.1]} 59. Kb8 {[%clk 0:00:37.4]} 59... Rb1
{[%clk 0:00:20]} 60. Kc8 {[%clk 0:00:38.9]} 1-0